bitfinex/quotes_BTCUSD_20251224
["timestamp","ask_amount","ask_price","bid_price","bid_amount"]
[1766543687353,0.02291419,87457.0,87448.0,0.01143536]
[1766543687561,0.02291419,87457.0,87447.0,0.01143549]
[1766543687760,0.01143432,87456.0,87448.0,0.01143536]
[1766543687992,0.02291419,87457.0,87448.0,0.01143536]
[1766543688199,0.01143432,87456.0,87447.0,0.01143549]
[1766543688815,0.01143458,87454.0,87445.0,0.01148]
[1766543689015,0.01143484,87452.0,87445.0,0.01148]
[1766543689312,0.0114351,87450.0,87445.0,0.01148]
[1766543689765,0.01143536,87448.0,87445.0,0.01148]
[1766543690661,0.01143523,87449.0,87445.0,4.2e-07]
[1766543690868,0.01143549,87447.0,87443.0,0.01148]
[1766543692290,0.01143536,87448.0,87443.0,0.01148]
[1766543692477,0.0114351,87450.0,87443.0,0.01148]
[1766543693103,0.01143497,87451.0,87443.0,0.01148]
[1766543693315,0.01143523,87449.0,87443.0,0.01148]
[1766543693517,0.01143536,87448.0,87443.0,0.01148]
[1766543695000,0.0114351,87450.0,87443.0,0.01148]
[1766543695509,0.01143523,87449.0,87443.0,0.01148]
[1766543695733,0.0114351,87450.0,87443.0,0.01148]
[1766543695915,0.05717384,87453.0,87441.0,0.02291628]
[1766543696134,0.05727228,87455.0,87442.0,0.13507615]
[1766543696341,0.0001,87455.0,87443.0,0.01148]
[1766543696539,0.01148,87457.0,87455.0,0.000999]
[1766543697032,0.01148,87457.0,87444.0,0.01143589]
[1766543697033,0.01143432,87456.0,87447.0,0.01143549]
[1766543698238,0.02291419,87457.0,87447.0,0.01143549]
[1766543698417,0.01143432,87456.0,87448.0,0.01143536]
[1766543698619,0.01143602,87443.0,87429.0,0.01143785]
[1766543698819,0.01143641,87440.0,87429.0,0.01143785]
[1766543699049,0.01143706,87435.0,87428.0,0.01148]
[1766543699830,0.01143719,87434.0,87428.0,0.01148]
[1766543700028,0.01143719,87434.0,87422.0,0.01143876]
[1766543700029,0.01153798,87428.0,87419.0,0.1184]
[1766543700380,0.01143811,87427.0,87419.0,0.01183799]
[1766543700725,0.0114385,87424.0,87419.0,0.00035799]
[1766543700925,0.01143876,87422.0,87419.0,0.00035799]
[1766543701154,0.01143863,87423.0,87419.0,0.00035799]
[1766543701579,0.0114385,87424.0,87419.0,0.00035799]
[1766543701799,0.05718987,87429.0,87419.0,0.00035799]
[1766543701800,0.01143719,87434.0,87424.0,0.1184]
[1766543702000,0.01148,87435.0,87428.0,0.1184]
[1766543702224,0.01148,87435.0,87420.0,0.01148]
[1766543702225,0.01143536,87448.0,87432.0,0.1184]
[1766543702420,0.01158,87445.0,87438.0,0.1184]
[1766543702629,0.01143615,87442.0,87438.0,0.1184]
[1766543702990,0.01143628,87441.0,87438.0,0.1184]
[1766543703192,0.01143615,87442.0,87438.0,0.1184]
[1766543704198,0.0001,87438.0,87432.0,0.01148]
[1766543704399,0.01143615,87442.0,87420.0,0.1184]
[1766543704400,0.01143811,87427.0,87420.0,0.1184]
[1766543704622,0.01143863,87423.0,87419.0,0.00035799]
[1766543704780,0.01143863,87423.0,87412.0,0.1184]
[1766543704781,0.01143876,87422.0,87412.0,0.1184]
[1766543704985,0.01143916,87419.0,87413.0,0.01148]
[1766543705224,0.01143929,87418.0,87412.0,0.00010742]
[1766543705783,0.01143942,87417.0,87412.0,0.00010742]
[1766543705986,0.01143968,87415.0,87412.0,0.00010742]
[1766543706382,0.06863841,87415.0,87412.0,0.00010742]
[1766543706791,0.01143968,87415.0,87412.0,0.00010742]
[1766543709514,0.06863851,87415.0,87412.0,0.00010742]
[1766543709717,0.06863851,87415.0,87412.0,7.42e-06]
[1766543715055,0.02291955,87416.0,87415.0,0.000549]
[1766543715565,0.01093,87416.0,87412.0,7.42e-06]
[1766543715755,0.01148,87417.0,87413.0,0.1184]
[1766543715955,0.01148,87420.0,87413.0,0.1184]
[1766543716197,0.010931,87420.0,87413.0,0.1184]
[1766543717187,0.010931,87420.0,87413.0,0.12983994]
[1766543717767,0.010931,87420.0,87414.0,0.01143981]
[1766543718005,0.010931,87420.0,87415.0,0.01143968]
[1766543718322,0.010931,87420.0,87413.0,0.12983994]
[1766543719354,0.010931,87420.0,87415.0,0.01143968]
[1766543719530,0.010931,87420.0,87413.0,0.18703935]
[1766543719711,0.010931,87420.0,87415.0,0.1184]
[1766543719908,0.00795093,87420.0,87415.0,0.12983968]
[1766543720089,0.00795093,87420.0,87415.0,0.1184]
[1766543722116,0.06863636,87418.0,87412.0,7.42e-06]
[1766543722334,0.000549,87415.0,87412.0,7.42e-06]
[1766543722647,0.05719907,87414.0,87412.0,7.42e-06]
[1766543724414,0.01143968,87415.0,87412.0,7.42e-06]
[1766543725983,0.01143942,87417.0,87412.0,7.42e-06]
[1766543726423,0.01148,87420.0,87415.0,0.01143968]
[1766543726645,4e-05,87420.0,87412.0,7.42e-06]
[1766543726938,0.22875704,87429.0,87412.0,7.42e-06]
[1766543726939,0.01148386,87422.0,87412.0,7.42e-06]
[1766543727385,0.01143902,87420.0,87412.0,7.42e-06]
[1766543727636,0.01143916,87419.0,87412.0,7.42e-06]
[1766543727811,0.01143902,87420.0,87412.0,7.42e-06]
[1766543728138,0.01143955,87416.0,87412.0,7.42e-06]
[1766543728374,0.01143968,87415.0,87412.0,7.42e-06]
[1766543729153,0.01143968,87415.0,87403.0,0.01144125]
[1766543729154,0.01144046,87409.0,87400.0,0.11413]
[1766543729319,0.05720105,87411.0,87402.0,0.11413]
[1766543729320,0.01144033,87410.0,87402.0,0.11413]
[1766543729521,0.01144033,87410.0,87402.0,0.12561]
[1766543729835,0.01144007,87412.0,87402.0,0.13705138]
[1766543730041,0.01144007,87412.0,87404.0,0.11413]
[1766543730244,2e-07,87411.0,87404.0,0.11413]
[1766543730466,0.0114404,87411.0,87404.0,0.11413]
[1766543730792,2e-07,87411.0,87404.0,0.11413]
[1766543731186,0.01144033,87410.0,87402.0,0.01148]
[1766543731770,0.0114404,87411.0,87402.0,0.01148]
[1766543731981,0.0114404,87411.0,87402.0,0.02292138]
[1766543732403,2e-07,87411.0,87402.0,0.02292138]
[1766543732609,0.0114404,87411.0,87402.0,0.02292138]
[1766543732807,2e-07,87411.0,87403.0,0.01144125]
[1766543733214,2e-07,87411.0,87404.0,0.11413]
[1766543733526,2e-07,87411.0,87407.0,0.01144073]
[1766543734312,2e-07,87411.0,87408.0,0.0114406]
[1766543734557,0.01148,87419.0,87414.0,0.12373]
[1766543734710,3.86e-06,87422.0,87414.0,0.13516981]
[1766543735754,3.86e-06,87422.0,87415.0,0.01143968]
[1766543735967,3.86e-06,87422.0,87417.0,0.01143942]
[1766543736173,3.86e-06,87422.0,87415.0,0.01143968]
[1766543736174,3.86e-06,87422.0,87419.0,0.13516916]
[1766543737892,3.86e-06,87422.0,87419.0,0.12373]
[1766543738249,0.06862181,87436.0,87424.0,0.0114385]
[1766543738452,0.01143732,87433.0,87426.0,0.02745069]
[1766543738836,0.02291719,87434.0,87426.0,0.02745069]
[1766543739253,0.01148,87434.0,87428.0,0.01143798]
[1766543739498,0.01143628,87441.0,87428.0,0.19235784]
[1766543739716,0.0001,87445.0,87426.0,0.08464144]
[1766543739717,0.01153575,87445.0,87435.0,0.12373]
[1766543739893,0.01143654,87439.0,87435.0,0.13521]
[1766543740105,0.01143641,87440.0,87435.0,0.13521]
[1766543740522,8.186e-05,87440.0,87435.0,0.13521]
[1766543740892,0.01151827,87440.0,87435.0,0.13521]
[1766543741094,0.0114368,87437.0,87433.0,0.01148]
[1766543741509,0.01151827,87440.0,87433.0,0.01148]
[1766543741711,0.01143654,87439.0,87433.0,0.01148]
[1766543744102,0.01143667,87438.0,87433.0,0.01148]
[1766543744849,0.01143693,87436.0,87433.0,0.01148]
[1766543745556,0.05718948,87429.0,87417.0,0.01143942]
[1766543745757,0.01143785,87429.0,87423.0,6.9e-07]
[1766543746170,0.01143759,87431.0,87423.0,6.9e-07]
[1766543746468,0.01143745,87432.0,87423.0,0.01143932]
[1766543747203,0.01143745,87432.0,87423.0,6.9e-07]
[1766543747584,0.01143772,87430.0,87423.0,6.9e-07]
[1766543748124,0.01143772,87430.0,87423.0,0.01148069]
[1766543748290,0.01143772,87430.0,87424.0,0.02745069]
[1766543748291,0.01143824,87426.0,87424.0,0.02745069]
[1766543748497,0.01143811,87427.0,87424.0,0.02745069]
[1766543748840,0.01143798,87428.0,87424.0,0.02745069]
[1766543749139,0.01143811,87427.0,87424.0,0.02745069]
[1766543750067,0.01143798,87428.0,87424.0,0.02745069]
[1766543750278,0.01143811,87427.0,87424.0,0.02745069]
[1766543750663,0.01143798,87428.0,87424.0,0.02745069]
[1766543751488,0.01143745,87432.0,87424.0,0.02745069]
[1766543751692,0.01143732,87433.0,87428.0,0.000549]
[1766543751885,0.01143732,87433.0,87424.0,0.02745069]
[1766543751886,0.01143732,87433.0,87424.0,0.03823461]
[1766543752131,0.01143732,87433.0,87424.0,0.02679611]
[1766543752363,0.0114368,87437.0,87428.0,0.12373]
[1766543752490,0.01143719,87434.0,87429.0,0.13521]
[1766543752686,0.01143706,87435.0,87429.0,0.13521]
[1766543752890,0.01143719,87434.0,87429.0,0.13521]
[1766543753197,0.01143706,87435.0,87429.0,0.12373]
[1766543753400,0.01143693,87436.0,87429.0,0.12373]
[1766543753606,0.01143706,87435.0,87429.0,0.12373]
[1766543754057,0.01143719,87434.0,87429.0,0.12373]
[1766543754378,0.01143719,87434.0,87429.0,0.123181]
[1766543754546,0.01143732,87433.0,87429.0,0.123181]
[1766543754725,0.01143719,87434.0,87429.0,0.123181]
[1766543754926,0.01143732,87433.0,87429.0,0.123181]
[1766543755351,0.01143745,87432.0,87429.0,0.123181]
[1766543755551,0.01143732,87433.0,87429.0,0.123181]
[1766543755750,0.01143759,87431.0,87428.0,0.01148]
[1766543756521,0.01143824,87426.0,87425.0,0.01148]
[1766543756692,0.01143824,87426.0,87424.0,0.01148]
[1766543758223,0.01143824,87426.0,87424.0,0.01093]
[1766543759269,0.0686295,87426.0,87424.0,0.01093]
[1766543760062,0.0686295,87426.0,87415.0,0.18092968]
[1766543760063,0.01143863,87423.0,87415.0,0.12373]
[1766543760266,0.01143837,87425.0,87422.0,0.02745069]
[1766543760476,0.01143837,87425.0,87422.0,0.03893069]
[1766543760677,0.01143837,87425.0,87422.0,0.02745069]
[1766543760833,0.05719253,87424.0,87422.0,0.02745069]
[1766543761551,0.01143837,87425.0,87408.0,0.04576]
[1766543761552,0.01143942,87417.0,87408.0,0.04576]
[1766543761717,0.01143942,87417.0,87405.0,0.06864532]
[1766543761718,0.01143968,87415.0,87405.0,0.01148]
[1766543762152,0.01144007,87412.0,87405.0,0.01148]
[1766543762572,0.01143994,87413.0,87405.0,0.01148]
[1766543763182,0.0114402,87411.0,87405.0,0.01148]
[1766543763468,0.01144033,87410.0,87405.0,0.01148]
[1766543763675,0.01144046,87409.0,87405.0,0.01148]
[1766543764014,0.0114406,87408.0,87400.0,0.12166]
[1766543764328,0.01144046,87409.0,87401.0,0.01148]
[1766543764750,0.0114406,87408.0,87401.0,0.01148]
[1766543766091,0.01144046,87409.0,87401.0,0.01148]
[1766543766290,0.06871529,87411.0,87401.0,0.01148]
[1766543766291,7.366e-05,87411.0,87409.0,0.001099]
[1766543766694,7.366e-05,87411.0,87402.0,0.13310138]
[1766543767060,7.366e-05,87411.0,87403.0,0.01144125]
[1766543767267,7.366e-05,87411.0,87402.0,0.13310138]
[1766543767478,7.366e-05,87411.0,87404.0,0.01144112]
[1766543767643,0.01143955,87416.0,87404.0,0.01144112]
[1766543767838,0.01143981,87414.0,87405.0,0.01144099]
[1766543768048,0.01143981,87414.0,87405.0,0.02292099]
[1766543768246,4.913e-05,87416.0,87408.0,0.0114406]
[1766543768451,4.913e-05,87416.0,87414.0,0.000476]
[1766543768864,4.913e-05,87416.0,87408.0,0.0114406]
[1766543769133,4.913e-05,87416.0,87409.0,0.01144046]
[1766543769526,4.913e-05,87416.0,87407.0,0.01144073]
[1766543769759,0.01143981,87414.0,87406.0,0.01148]
[1766543769967,0.01143968,87415.0,87406.0,0.01148]
[1766543770120,0.01143968,87415.0,87406.0,0.02292086]
[1766543770643,0.01148868,87416.0,87407.0,0.01144073]
[1766543770796,0.01143981,87414.0,87406.0,0.01148]
[1766543771215,0.01143994,87413.0,87406.0,0.01148]
[1766543771861,0.01143981,87414.0,87406.0,0.01148]
[1766543772008,0.01143994,87413.0,87406.0,0.01148]
[1766543773439,0.01148868,87416.0,87413.0,0.000476]
[1766543774090,0.01144046,87409.0,87399.0,0.01144177]
[1766543774293,0.01144046,87409.0,87400.0,0.01148]
[1766543774440,0.0114406,87408.0,87400.0,0.01148]
[1766543774638,0.01144046,87409.0,87400.0,0.02292164]
[1766543775228,0.0114406,87408.0,87400.0,0.01148]
[1766543775445,0.01144046,87409.0,87400.0,0.02292164]
[1766543775648,0.38494194,87410.0,87401.0,0.01144151]
[1766543775850,0.05724752,87416.0,87404.0,0.01144112]
[1766543776050,0.01148868,87416.0,87410.0,0.00055]
[1766543776255,0.01148868,87416.0,87407.0,0.01144073]
[1766543776428,0.01143968,87415.0,87405.0,0.13310099]
[1766543776627,0.01143968,87415.0,87406.0,0.02292086]
[1766543776851,0.01143981,87414.0,87406.0,0.01148]
[1766543777153,0.01143968,87415.0,87406.0,0.02292086]
[1766543777757,0.01148868,87416.0,87407.0,0.01144073]
[1766543777984,0.01143968,87415.0,87406.0,0.01148]
[1766543778195,0.01148868,87416.0,87407.0,0.01144073]
[1766543778931,4.913e-05,87416.0,87408.0,0.0114406]
[1766543779270,4.913e-05,87416.0,87409.0,0.01144046]
[1766543779729,4.913e-05,87416.0,87410.0,0.01144033]
[1766543779957,4.913e-05,87416.0,87409.0,0.01144046]
[1766543780231,4.913e-05,87416.0,87410.0,0.01144033]
[1766543782536,4.913e-05,87416.0,87411.0,0.0114402]
[1766543783323,4.913e-05,87416.0,87409.0,0.01144046]
[1766543783523,4.913e-05,87416.0,87408.0,0.0114406]
[1766543783734,4.913e-05,87416.0,87409.0,0.01144046]
[1766543784529,4.913e-05,87416.0,87410.0,0.01144033]
[1766543785544,4.913e-05,87416.0,87411.0,0.0114402]
[1766543785742,0.01148,87419.0,87411.0,0.0114402]
[1766543785743,0.00979497,87419.0,87416.0,4.9e-05]
[1766543785964,0.38493933,87430.0,87417.0,0.12166]
[1766543786124,0.01148,87428.0,87421.0,0.12166]
[1766543786332,0.01143811,87427.0,87421.0,0.12166]
[1766543786534,0.01148,87428.0,87416.0,0.00015321]
[1766543786535,0.0005,87421.0,87416.0,0.00015321]
[1766543786760,0.0005,87421.0,87416.0,0.01163321]
[1766543786956,0.01143876,87422.0,87416.0,0.01163321]
[1766543788310,0.01143863,87423.0,87416.0,0.00015321]
[1766543788670,0.01143876,87422.0,87416.0,2.1e-07]
[1766543788882,0.01143889,87421.0,87416.0,2.1e-07]
[1766543790090,0.01143863,87423.0,87416.0,2.1e-07]
[1766543790773,0.01143876,87422.0,87416.0,2.1e-07]
[1766543791767,0.01143876,87422.0,87414.0,0.01148]
[1766543792446,0.01143863,87423.0,87414.0,0.02291981]
[1766543792665,0.0801081,87428.0,87415.0,0.01143968]
[1766543792841,0.01143811,87427.0,87423.0,0.000202]
[1766543793029,0.01143824,87426.0,87423.0,0.000202]
[1766543793383,0.01143811,87427.0,87418.0,0.01143929]
[1766543793917,0.01143837,87425.0,87416.0,0.01143955]
[1766543794139,0.01143824,87426.0,87417.0,0.01143942]
[1766543794307,0.01143811,87427.0,87416.0,0.01143955]
[1766543794509,0.01143811,87427.0,87416.0,0.06863729]
[1766543794751,0.01143824,87426.0,87416.0,0.01143955]
[1766543794966,0.01143811,87427.0,87418.0,0.01143929]
[1766543795270,0.01143824,87426.0,87417.0,0.01143942]
[1766543795430,0.01143811,87427.0,87418.0,0.01143929]
[1766543796023,0.01143824,87426.0,87417.0,0.01143942]
[1766543796643,0.01148,87428.0,87420.0,0.01143902]
[1766543797566,0.01148,87428.0,87419.0,0.01143916]
[1766543797567,0.02291798,87428.0,87419.0,0.01143916]
[1766543798278,0.01148,87428.0,87420.0,0.01143902]
[1766543799279,0.01148,87428.0,87419.0,0.01143916]
[1766543800916,0.02291798,87428.0,87418.0,0.01143929]
[1766543801134,0.01143824,87426.0,87416.0,0.01143955]
[1766543801323,0.01143824,87426.0,87415.0,0.13604968]
[1766543802077,0.01143837,87425.0,87415.0,0.13604968]
[1766543802348,0.0114385,87424.0,87415.0,0.13604968]
[1766543802539,0.01143837,87425.0,87416.0,0.01143955]
[1766543803018,0.0114385,87424.0,87415.0,0.13604968]
[1766543803254,0.01143876,87422.0,87414.0,0.01148]
[1766543803478,0.000347,87415.0,87414.0,0.01148]
[1766543803886,0.01143889,87421.0,87414.0,0.01148]
[1766543804181,0.01143902,87420.0,87414.0,0.01148]
[1766543804379,0.01143889,87421.0,87414.0,0.01148]
[1766543804741,0.06863034,87425.0,87414.0,0.02291981]
[1766543804967,0.01143863,87423.0,87414.0,0.02291981]
[1766543805145,0.01143863,87423.0,87414.0,0.01148]
[1766543805361,0.01143863,87423.0,87414.0,0.02291981]
[1766543805542,0.01143837,87425.0,87416.0,0.01143955]
[1766543805744,0.01143824,87426.0,87417.0,0.01143942]
[1766543806996,0.01143837,87425.0,87415.0,0.01143968]
[1766543807368,0.01143837,87425.0,87416.0,0.01143955]
[1766543807701,0.01143811,87427.0,87418.0,0.01143929]
[1766543807909,0.01148,87428.0,87419.0,0.01143916]
[1766543808045,0.01148,87428.0,87420.0,0.1214]
[1766543808456,0.02291798,87428.0,87420.0,0.1214]
[1766543808897,0.02291798,87428.0,87419.0,0.01143916]
[1766543809100,0.02291798,87428.0,87418.0,0.01143929]
[1766543809609,0.02291798,87428.0,87419.0,0.01143916]
[1766543809812,0.02291798,87428.0,87418.0,0.01143929]
[1766543810017,0.01143811,87427.0,87418.0,0.01143929]
[1766543810372,0.01143811,87427.0,87417.0,0.01143942]
[1766543810576,0.0686269,87430.0,87418.0,0.01129429]
[1766543810789,0.01143798,87428.0,87418.0,0.01134343]
[1766543810989,0.01143798,87428.0,87419.0,0.01143916]
[1766543811610,0.01143785,87429.0,87420.0,0.01143902]
[1766543812016,0.01143785,87429.0,87419.0,0.01143916]
[1766543812413,0.01143785,87429.0,87420.0,0.01143902]
[1766543812596,0.000202,87420.0,87418.0,4.914e-05]
[1766543813179,0.01143811,87427.0,87418.0,4.914e-05]
[1766543813180,0.01143811,87427.0,87418.0,0.01148843]
[1766543813376,0.01143824,87426.0,87418.0,4.914e-05]
[1766543813597,0.0114385,87424.0,87418.0,1.4e-07]
[1766543813803,0.01143837,87425.0,87418.0,1.4e-07]
[1766543814225,0.0114385,87424.0,87418.0,1.4e-07]
[1766543814429,0.01143837,87425.0,87418.0,1.4e-07]
[1766543814985,0.0114385,87424.0,87418.0,1.4e-07]
[1766543815318,0.01143837,87425.0,87418.0,1.4e-07]
[1766543816357,0.0114385,87424.0,87418.0,1.4e-07]
[1766543817529,0.01143837,87425.0,87418.0,1.4e-07]
[1766543817736,0.0114385,87424.0,87418.0,1.4e-07]
[1766543818109,0.01143889,87421.0,87418.0,1.4e-07]
[1766543818339,0.05719575,87420.0,87418.0,1.4e-07]
[1766543818548,0.06863395,87421.0,87418.0,1.4e-07]
[1766543820342,0.01143889,87421.0,87418.0,1.4e-07]
[1766543820757,0.06863342,87421.0,87418.0,1.4e-07]
[1766543820964,0.05719576,87420.0,87418.0,1.4e-07]
[1766543821758,0.06863342,87421.0,87418.0,1.4e-07]
[1766543821961,0.08011342,87421.0,87418.0,1.4e-07]
[1766543822546,0.0571958,87419.0,87418.0,1.4e-07]
[1766543822797,0.08011342,87421.0,87418.0,1.4e-07]
[1766543823361,0.0571958,87419.0,87418.0,1.4e-07]
[1766543824114,0.08011342,87421.0,87418.0,1.4e-07]
[1766543826535,0.02291889,87421.0,87418.0,1.4e-07]
[1766543826747,0.011084,87421.0,87418.0,0.01143943]
[1766543827842,0.011084,87421.0,87418.0,1.4e-07]
[1766543828050,0.011084,87421.0,87418.0,0.01143943]
[1766543828451,0.01148,87421.0,87418.0,0.01143943]
[1766543828797,0.01148,87425.0,87418.0,0.01143943]
[1766543829755,0.01148,87425.0,87419.0,0.01143916]
[1766543829948,0.01148,87425.0,87418.0,0.01143943]
[1766543830308,0.01148,87425.0,87419.0,0.01143916]
[1766543830537,0.01148,87425.0,87399.0,0.01148]
[1766543830538,0.01143981,87414.0,87399.0,0.01148]
[1766543830743,0.01144073,87407.0,87399.0,0.01156196]
[1766543830954,0.01148,87414.0,87404.0,0.01144112]
[1766543831157,0.01148,87414.0,87408.0,0.15255295]
[1766543831355,0.01148,87414.0,87409.0,0.12052]
[1766543832305,0.01148,87414.0,87411.0,0.12052]
[1766543834599,0.01143942,87417.0,87411.0,0.12052]
[1766543834851,0.01143929,87418.0,87411.0,0.12052]
[1766543835833,0.01143955,87416.0,87411.0,0.12052]
[1766543836043,0.01143942,87417.0,87411.0,0.12052]
[1766543836757,0.01143929,87418.0,87411.0,0.12052]
[1766543836923,0.01143942,87417.0,87411.0,0.12052]
[1766543837522,0.01143929,87418.0,87411.0,0.12052]
[1766543837913,0.01143916,87419.0,87411.0,0.12052]
[1766543839485,0.02291902,87420.0,87411.0,0.12052]
[1766543839753,0.02291902,87420.0,87411.0,0.1319602]
[1766543839754,0.01148,87420.0,87411.0,0.1319602]
[1766543839961,0.01148,87420.0,87412.0,0.01144007]
[1766543840101,0.22873636,87437.0,87420.0,0.13195902]
[1766543840102,0.02291785,87429.0,87420.0,0.13195902]
[1766543840445,0.02291785,87429.0,87420.0,0.12052]
[1766543840446,0.01143798,87428.0,87420.0,0.12052]
[1766543840653,0.01143811,87427.0,87420.0,0.12052]
[1766543840851,0.01143798,87428.0,87420.0,0.12052]
[1766543841108,0.01148,87430.0,87424.0,0.0114385]
[1766543841489,0.01148,87430.0,87425.0,0.01143837]
[1766543841709,0.01148,87430.0,87424.0,0.0114385]
[1766543842264,0.01148,87430.0,87425.0,0.01143837]
[1766543842694,0.01148,87430.0,87424.0,0.0114385]
[1766543844632,0.01143719,87434.0,87424.0,0.0114385]
[1766543844844,0.01143719,87434.0,87426.0,0.12052]
[1766543845045,0.01143706,87435.0,87426.0,0.12052]
[1766543845338,0.01143719,87434.0,87426.0,0.12052]
[1766543845539,0.01143706,87435.0,87426.0,0.13195824]
[1766543845746,0.01143693,87436.0,87426.0,0.13195824]
[1766543845941,0.01143706,87435.0,87426.0,0.13195824]
[1766543846737,0.01143706,87435.0,87427.0,0.01148]
[1766543847205,6.551e-05,87436.0,87427.0,0.01148]
[1766543847386,0.01150244,87436.0,87427.0,0.132]
[1766543847547,0.01143706,87435.0,87427.0,0.132]
[1766543848202,0.01150244,87436.0,87427.0,0.14343811]
[1766543848606,0.01143706,87435.0,87427.0,0.132]
[1766543849014,0.01143719,87434.0,87427.0,0.132]
[1766543849496,0.01143745,87432.0,87427.0,0.132]
[1766543849750,0.01143732,87433.0,87427.0,0.132]
[1766543849921,0.01143745,87432.0,87427.0,0.132]
[1766543850121,0.01143772,87430.0,87427.0,0.132]
[1766543850302,0.00020279,87427.0,87426.0,0.01148]
[1766543850496,0.00020279,87427.0,87426.0,0.01093]
[1766543850706,0.01143798,87428.0,87426.0,0.01093]
[1766543851362,0.0114385,87424.0,87411.0,0.0114402]
[1766543851504,0.05719384,87423.0,87412.0,0.01148]
[1766543851708,0.01143902,87420.0,87412.0,0.01148]
[1766543851928,0.01143889,87421.0,87412.0,0.13875007]
[1766543852537,0.01143876,87422.0,87412.0,0.13875007]
[1766543852739,0.01143889,87421.0,87412.0,0.13875007]
[1766543853335,0.01143902,87420.0,87412.0,0.12731]
[1766543853763,0.01143916,87419.0,87412.0,0.12731]
[1766543854454,0.01143902,87420.0,87412.0,0.12731]
[1766543854652,0.01143929,87418.0,87412.0,0.12731]
[1766543854970,0.01143929,87418.0,87413.0,0.01148]
[1766543855121,0.01143916,87419.0,87413.0,0.01148]
[1766543855765,0.01143902,87420.0,87413.0,0.01148]
[1766543856200,0.01143916,87419.0,87413.0,0.01148]
[1766543856545,0.01143876,87422.0,87414.0,0.11987]
[1766543856740,0.01143863,87423.0,87414.0,0.11987]
[1766543856981,0.01143876,87422.0,87414.0,0.11987]
[1766543857185,0.06863323,87422.0,87415.0,0.01148]
[1766543857389,0.01143981,87414.0,87407.0,0.01148]
[1766543857594,0.01144033,87410.0,87407.0,0.01148]
[1766543858311,0.0114406,87408.0,87398.0,0.1313119]
[1766543858532,0.01144086,87406.0,87399.0,0.01148]
[1766543859161,0.01144112,87404.0,87399.0,0.01148]
[1766543859512,0.01144099,87405.0,87399.0,0.01156196]
[1766543860076,0.01144086,87406.0,87399.0,0.01156196]
[1766543860366,0.01144073,87407.0,87399.0,0.13143196]
[1766543860906,0.01144086,87406.0,87399.0,0.11995196]
[1766543861112,0.01144099,87405.0,87400.0,0.01148]
[1766543861569,0.01144099,87405.0,87399.0,0.11995196]
[1766543861714,0.01144099,87405.0,87401.0,0.01148]
[1766543862355,0.01144112,87404.0,87401.0,0.011277]
[1766543862727,0.01144125,87403.0,87399.0,0.11995196]
[1766543862934,0.01144125,87403.0,87402.0,0.01148]
[1766543863183,0.01144125,87403.0,87399.0,0.11995196]
[1766543863184,0.01144138,87402.0,87399.0,8.196e-05]
[1766543863382,0.01144138,87402.0,87399.0,1.96e-06]
[1766543864638,0.0686483,87402.0,87399.0,1.96e-06]
[1766543865858,0.25174087,87405.0,87381.0,0.10298037]
[1766543865859,0.01144295,87390.0,87381.0,0.11987]
[1766543866061,0.38503074,87391.0,87382.0,0.01148]
[1766543866305,0.01144334,87387.0,87382.0,0.01148]
[1766543866435,0.01144348,87386.0,87382.0,0.01148]
[1766543867252,0.01144334,87387.0,87382.0,0.01148]
[1766543867456,0.01144361,87385.0,87382.0,0.01148]
[1766543868559,0.06866212,87385.0,87382.0,0.01148]
[1766543869091,0.01144348,87386.0,87373.0,0.0002]
[1766543869092,0.01144479,87376.0,87373.0,0.0002]
[1766543869296,0.01144465,87377.0,87373.0,0.00027366]
[1766543869297,0.05722329,87377.0,87373.0,0.00027366]
[1766543869520,0.01144479,87376.0,87373.0,0.00027366]
[1766543869925,0.01144465,87377.0,87373.0,0.00027366]
[1766543870323,0.01144479,87376.0,87373.0,0.00027366]
[1766543871059,0.01144465,87377.0,87373.0,0.00027366]
[1766543871989,0.06866874,87376.0,87373.0,0.00027366]
[1766543872230,0.01144505,87374.0,87371.0,3.66e-06]
[1766543872416,0.01144518,87373.0,87361.0,0.01144675]
[1766543872682,0.08014874,87376.0,87360.0,0.01144688]
[1766543872683,0.02292479,87376.0,87363.0,0.01144649]
[1766543872903,0.01144492,87375.0,87363.0,0.06867869]
[1766543873097,0.01144531,87372.0,87362.0,0.01144662]
[1766543873215,0.01144531,87372.0,87361.0,0.05723326]
[1766543873216,0.01144557,87370.0,87361.0,0.01144675]
[1766543873421,0.0114457,87369.0,87360.0,0.11987]
[1766543873700,0.0114457,87369.0,87359.0,0.01144701]
[1766543873701,0.01144583,87368.0,87359.0,0.01144701]
[1766543873890,0.01144583,87368.0,87358.0,0.01144714]
[1766543873891,0.01144583,87368.0,87357.0,0.01148]
[1766543874109,0.01144623,87365.0,87357.0,0.01148]
[1766543874476,0.01144596,87367.0,87357.0,0.01148]
[1766543874893,0.0114457,87369.0,87360.0,0.01144688]
[1766543875295,0.01144596,87367.0,87358.0,0.01144714]
[1766543875472,0.01144583,87368.0,87359.0,0.01144701]
[1766543875843,0.0114457,87369.0,87359.0,0.01144701]
[1766543876018,0.0114457,87369.0,87358.0,0.01144714]
[1766543876229,0.0114457,87369.0,87359.0,0.01144701]
[1766543876371,0.01148,87370.0,87362.0,0.01144662]
[1766543876721,0.01148,87371.0,87362.0,0.06867946]
[1766543876870,0.01148,87371.0,87364.0,0.01144636]
[1766543877296,0.01148,87371.0,87365.0,0.01144623]
[1766543877864,0.0077121,87371.0,87368.0,0.01144583]
[1766543878066,0.01148,87375.0,87368.0,0.12833583]
[1766543878239,0.01154547,87375.0,87369.0,0.11689]
[1766543878639,0.01154547,87375.0,87366.0,0.0114461]
[1766543878897,0.01154547,87375.0,87367.0,0.01144596]
[1766543879314,0.01154547,87375.0,87368.0,0.01144583]
[1766543879488,0.01154547,87375.0,87367.0,0.01144596]
[1766543879700,0.01154547,87375.0,87368.0,0.01144583]
[1766543880586,0.02299039,87375.0,87366.0,0.0114461]
[1766543880956,0.01144518,87373.0,87364.0,0.12833636]
[1766543881128,0.01144531,87372.0,87364.0,0.11689]
[1766543881352,0.06867047,87374.0,87364.0,0.11689]
[1766543881353,0.01144505,87374.0,87364.0,0.11689]
[1766543881487,0.01154547,87375.0,87364.0,0.1741217]
[1766543881828,0.08021506,87375.0,87364.0,0.11689]
[1766543882030,0.01144557,87370.0,87364.0,0.11689]
[1766543882192,0.01144544,87371.0,87364.0,0.11689]
[1766543882193,0.06867271,87371.0,87364.0,0.116341]
[1766543882386,0.01144544,87371.0,87364.0,0.1021921]
[1766543882622,0.01144557,87370.0,87362.0,0.01148]
[1766543882815,0.01144544,87371.0,87362.0,0.02292662]
[1766543883015,0.01154547,87375.0,87371.0,0.000549]
[1766543883192,0.1311234,87394.0,87371.0,0.05777594]
[1766543883193,0.01148,87376.0,87371.0,0.05777594]
[1766543883415,0.01144387,87383.0,87374.0,0.11689]
[1766543883615,0.01144387,87383.0,87373.0,0.01144518]